[Event "Nordstansblixten 2025"]
[Site "Nordstan, Göteborg, Sweden"]
[Date "2025.05.10"]
[Round "9.4"]
[White "Gustavsson, Ville"]
[Black "Kadunic, Admir"]
[Result "0-1"]
[TimeControl "3 minutes + 2 seconds per move from move one"]
[WhiteFideId "1792822"]
[BlackFideId "1773542"]
[WhiteElo "1798"]
[BlackElo "2109"]

1. e4 {[%clk 00:03:03]} {[%emt 00:00:46]} d6 {[%clk 00:02:59]} {[%emt
00:00:06]} 2. d4 {[%clk 00:03:02]} {[%emt 00:00:03]} c5 {[%clk 00:03:00]}
{[%emt 00:00:02]} 3. dxc5 {[%clk 00:02:59]} {[%emt 00:00:05]} Qa5+ {[%clk
00:03:01]} {[%emt 00:00:02]} 4. c3 {[%clk 00:02:27]} {[%emt 00:00:34]} Qxc5
{[%clk 00:03:01]} 5. Be3 {[%clk 00:02:25]} {[%emt 00:00:03]} Qa5 {[%clk
00:03:02]} {[%emt 00:00:02]} 6. Nf3 {[%clk 00:02:18]} {[%emt 00:00:09]} Nf6
{[%clk 00:03:02]} {[%emt 00:00:02]} 7. Nbd2 {[%clk 00:02:16]} {[%emt 00:00:05]}
Nc6 {[%clk 00:03:02]} {[%emt 00:00:02]} 8. Bc4 {[%clk 00:01:54]} {[%emt
00:00:25]} g6 {[%clk 00:03:01]} {[%emt 00:00:02]} 9. O-O {[%clk 00:01:53]}
{[%emt 00:00:02]} Bg7 {[%clk 00:03:02]} 10. Nb3 {[%clk 00:01:51]} {[%emt
00:00:05]} Qd8 {[%clk 00:02:54]} {[%emt 00:00:08]} 11. Re1 {[%clk 00:01:29]}
{[%emt 00:00:25]} O-O {[%clk 00:02:54]} {[%emt 00:00:02]} 12. Bd4 {[%clk
00:01:18]} {[%emt 00:00:14]} Bg4 {[%clk 00:02:50]} {[%emt 00:00:06]} 13. h3
{[%clk 00:01:15]} {[%emt 00:00:05]} Bxf3 {[%clk 00:02:31]} {[%emt 00:00:21]} 14.
Qxf3 {[%clk 00:01:16]} Nxd4 {[%clk 00:02:31]} {[%emt 00:00:03]} 15. Nxd4 {[%clk
00:01:15]} {[%emt 00:00:02]} Qb6 {[%clk 00:02:25]} {[%emt 00:00:08]} 16. Re2
{[%clk 00:00:52]} {[%emt 00:00:25]} Nd7 {[%clk 00:02:10]} {[%emt 00:00:17]} 17.
Rd1 {[%clk 00:00:49]} {[%emt 00:00:04]} Ne5 {[%clk 00:02:11]} {[%emt 00:00:02]}
18. Bxf7+ {[%clk 00:00:16]} {[%emt 00:00:34]} Rxf7 {[%clk 00:02:12]} {[%emt
00:00:01]} 19. Qe3 {[%clk 00:00:17]} Nc4 {[%clk 00:01:43]} {[%emt 00:00:31]} 20.
Qc1 {[%clk 00:00:10]} {[%emt 00:00:10]} Bxd4 {[%clk 00:01:39]} {[%emt
00:00:06]} 21. cxd4 {[%clk 00:00:10]} Na5 {[%clk 00:01:28]} {[%emt 00:00:14]}
22. b3 {[%clk 00:00:07]} {[%emt 00:00:06]} Nc6 {[%clk 00:01:25]} {[%emt
00:00:04]} 23. Qc4 {[%clk 00:00:06]} {[%emt 00:00:02]} Raf8 {[%clk 00:00:58]}
{[%emt 00:00:30]} 24. e5 {[%clk 00:00:04]} {[%emt 00:00:04]} Qb4 {[%clk
00:00:45]} {[%emt 00:00:15]} 25. Qe6 {[%clk 00:00:03]} {[%emt 00:00:02]} Nxd4
{[%clk 00:00:32]} {[%emt 00:00:16]} 26. exd6 {[%emt 00:00:02]} Nxe6 27. dxe7
{[%clk 00:00:05]} Rxe7 {[%clk 00:00:31]} {[%emt 00:00:01]} 28. Rd3 {[%clk
00:00:06]} {[%emt 00:00:02]} Rfe8 {[%clk 00:00:28]} {[%emt 00:00:05]} 29. Rde3
{[%clk 00:00:07]} Nd4 {[%clk 00:00:28]} {[%emt 00:00:02]} 30. Rxe7 {[%clk
00:00:08]} 0-1

[Event "Nordstansblixten 2025"]
[Site "Nordstan, Göteborg, Sweden"]
[Date "2025.05.10"]
[Round "9.5"]
[White "Sivarama, Saadhvik"]
[Black "Olivius, Sten"]
[Result "0-1"]
[TimeControl "3 minutes + 2 seconds per move from move one"]
[WhiteFideId "1773720"]
[BlackFideId "1788728"]
[WhiteElo "1592"]
[BlackElo "1874"]

1. e4 {[%clk 00:03:02]} {[%emt 00:00:02]} e6 {[%clk 00:03:04]} 2. d4 {[%clk
00:03:02]} {[%emt 00:00:01]} d5 {[%clk 00:03:05]} 3. e5 {[%clk 00:03:03]} c5
{[%clk 00:03:06]} 4. c3 {[%clk 00:03:04]} Nc6 {[%clk 00:03:07]} 5. Nf3 {[%clk
00:03:05]} Qb6 {[%clk 00:03:08]} {[%emt 00:00:01]} 6. Be2 {[%clk 00:02:51]}
{[%emt 00:00:17]} Nge7 {[%emt 00:00:07]} 7. O-O {[%clk 00:02:50]} Nf5 {[%clk
00:03:03]} {[%emt 00:00:03]} 8. Qd2 {[%clk 00:02:16]} {[%emt 00:00:35]} Bd7
{[%clk 00:02:51]} {[%emt 00:00:15]} 9. Rd1 {[%clk 00:02:08]} {[%emt 00:00:10]}
Rc8 {[%clk 00:02:50]} {[%emt 00:00:02]} 10. Na3 {[%clk 00:02:03]} {[%emt
00:00:08]} cxd4 {[%clk 00:02:47]} {[%emt 00:00:04]} 11. cxd4 {[%clk 00:02:01]}
{[%emt 00:00:05]} Bb4 {[%clk 00:02:40]} {[%emt 00:00:09]} 12. Qd3 {[%clk
00:01:55]} {[%emt 00:00:08]} Bxa3 {[%clk 00:02:34]} {[%emt 00:00:08]} 13. bxa3
{[%clk 00:01:54]} {[%emt 00:00:03]} Na5 {[%clk 00:02:21]} {[%emt 00:00:14]} 14.
Be3 {[%clk 00:01:24]} {[%emt 00:00:33]} Nc4 {[%clk 00:02:16]} {[%emt 00:00:07]}
15. Rdb1 {[%clk 00:01:06]} {[%emt 00:00:20]} Qa6 {[%emt 00:00:14]} 16. Qb3
{[%clk 00:00:52]} {[%emt 00:00:14]} b5 {[%clk 00:02:00]} {[%emt 00:00:09]} 17.
Rc1 {[%clk 00:00:24]} {[%emt 00:00:30]} Nfxe3 {[%clk 00:01:43]} {[%emt
00:00:20]} 18. fxe3 {[%clk 00:00:23]} {[%emt 00:00:02]} O-O {[%clk 00:01:41]}
{[%emt 00:00:04]} 19. Rc3 {[%clk 00:00:10]} {[%emt 00:00:15]} Na5 {[%clk
00:01:29]} {[%emt 00:00:14]} 20. Qb2 {[%clk 00:00:07]} {[%emt 00:00:05]} Rxc3
{[%clk 00:01:26]} {[%emt 00:00:06]} 21. Qxc3 {[%clk 00:00:08]} Nc4 {[%clk
00:01:26]} {[%emt 00:00:02]} 0-1

[Event "Nordstansblixten 2025"]
[Site "Nordstan, Göteborg, Sweden"]
[Date "2025.05.10"]
[Round "9.7"]
[White "Bergdahl, Martin"]
[Black "Hammar, Arvid"]
[Result "0-1"]
[TimeControl "3 minutes + 2 seconds per move from move one"]
[WhiteFideId "1782231"]
[BlackFideId "1735977"]
[WhiteElo "1867"]
[BlackElo "1667"]

1. e4 {[%clk 00:03:01]} {[%emt 00:00:02]} e5 {[%clk 00:03:03]} {[%emt
00:00:02]} 2. Nf3 {[%clk 00:03:02]} {[%emt 00:00:02]} Nc6 {[%clk 00:03:04]} 3.
Bb5 {[%clk 00:03:03]} Nf6 {[%clk 00:03:04]} {[%emt 00:00:02]} 4. O-O {[%clk
00:03:03]} {[%emt 00:00:03]} d6 {[%clk 00:03:01]} {[%emt 00:00:06]} 5. c3
{[%clk 00:03:03]} {[%emt 00:00:01]} a6 {[%clk 00:03:02]} {[%emt 00:00:02]} 6.
Ba4 {[%clk 00:03:04]} b5 {[%clk 00:03:03]} {[%emt 00:00:01]} 7. Bb3 {[%clk
00:03:05]} Be7 {[%clk 00:02:52]} {[%emt 00:00:12]} 8. d4 {[%clk 00:02:50]}
{[%emt 00:00:17]} Na5 {[%clk 00:02:38]} {[%emt 00:00:17]} 9. dxe5 {[%clk
00:02:45]} {[%emt 00:00:07]} dxe5 {[%clk 00:02:35]} {[%emt 00:00:04]} 10. Nxe5
{[%clk 00:02:37]} {[%emt 00:00:10]} O-O {[%clk 00:02:27]} {[%emt 00:00:10]} 11.
Qxd8 {[%clk 00:02:29]} {[%emt 00:00:11]} Bxd8 {[%clk 00:02:24]} {[%emt
00:00:05]} 12. Bd5 {[%clk 00:01:55]} {[%emt 00:00:35]} Nxd5 {[%clk 00:02:19]}
{[%emt 00:00:08]} 13. exd5 {[%clk 00:01:55]} Bb7 {[%clk 00:02:16]} {[%emt
00:00:06]} 14. b4 {[%clk 00:01:45]} {[%emt 00:00:13]} Nc4 {[%clk 00:02:06]}
{[%emt 00:00:12]} 15. Nxc4 {[%clk 00:01:43]} {[%emt 00:00:03]} bxc4 {[%clk
00:02:06]} {[%emt 00:00:02]} 16. Rd1 {[%clk 00:01:43]} {[%emt 00:00:03]} Bf6
{[%clk 00:02:01]} {[%emt 00:00:07]} 17. Bb2 {[%clk 00:01:22]} {[%emt 00:00:23]}
Rad8 {[%clk 00:01:58]} {[%emt 00:00:04]} 18. Na3 {[%clk 00:01:19]} {[%emt
00:00:05]} Bxd5 {[%clk 00:01:49]} {[%emt 00:00:11]} 19. Nc2 {[%clk 00:01:16]}
{[%emt 00:00:05]} Be4 {[%clk 00:01:42]} {[%emt 00:00:09]} 20. Ne3 {[%clk
00:01:08]} {[%emt 00:00:10]} Bd3 {[%clk 00:01:36]} {[%emt 00:00:08]} 21. Ng4
{[%clk 00:00:40]} {[%emt 00:00:29]} Bg5 {[%clk 00:01:21]} {[%emt 00:00:17]} 22.
Ne5 {[%clk 00:00:33]} {[%emt 00:00:08]} f6 {[%clk 00:01:12]} {[%emt 00:00:13]}
23. Nf3 {[%clk 00:00:17]} {[%emt 00:00:18]} h5 {[%clk 00:00:56]} {[%emt
00:00:17]} 24. Nd4 {[%clk 00:00:12]} {[%emt 00:00:08]} Rfe8 {[%clk 00:00:42]}
{[%emt 00:00:15]} 25. Re1 {[%clk 00:00:12]} {[%emt 00:00:03]} Rxe1+ {[%clk
00:00:38]} {[%emt 00:00:06]} 26. Rxe1 {[%clk 00:00:13]} Kh7 {[%clk 00:00:32]}
{[%emt 00:00:08]} 27. Re7 {[%clk 00:00:12]} {[%emt 00:00:03]} Bg6 {[%clk
00:00:14]} {[%emt 00:00:20]} 28. Rxc7 {[%clk 00:00:10]} {[%emt 00:00:04]} Re8
{[%clk 00:00:13]} {[%emt 00:00:02]} 29. h3 {[%clk 00:00:05]} {[%emt 00:00:08]}
Re1+ {[%clk 00:00:11]} {[%emt 00:00:04]} 30. Kh2 {[%clk 00:00:06]} Rb1 {[%clk
00:00:10]} {[%emt 00:00:02]} 31. Ba3 {[%clk 00:00:06]} {[%emt 00:00:03]} Bf4+
{[%clk 00:00:08]} {[%emt 00:00:05]} 32. g3 {[%clk 00:00:05]} {[%emt 00:00:03]}
Bxc7 {[%clk 00:00:08]} {[%emt 00:00:01]} 33. Ne6 {[%clk 00:00:04]} {[%emt
00:00:02]} Be5 {[%clk 00:00:09]} {[%emt 00:00:01]} 34. Nc5 {[%clk 00:00:05]}
{[%emt 00:00:01]} Ra1 {[%clk 00:00:10]} {[%emt 00:00:02]} 35. Bb2 {[%clk
00:00:04]} {[%emt 00:00:03]} Rxa2 {[%clk 00:00:10]} 36. Bc1 {[%clk 00:00:06]}
Ra1 {[%clk 00:00:11]} {[%emt 00:00:01]} 37. Be3 {[%clk 00:00:07]} {[%emt
00:00:01]} Bd3 {[%clk 00:00:11]} {[%emt 00:00:03]} 38. Nxa6 {[%clk 00:00:07]}
{[%emt 00:00:01]} Rxa6 {[%clk 00:00:12]} {[%emt 00:00:02]} 0-1

[Event "Nordstansblixten 2025"]
[Site "Nordstan, Göteborg, Sweden"]
[Date "2025.05.10"]
[Round "9.8"]
[White "Buzleta, Patrik"]
[Black "Mohammed, Safian Haj"]
[Result "0-1"]
[TimeControl "3 minutes + 2 seconds per move from move one"]
[WhiteFideId "1755463"]
[BlackFideId "1729276"]
[WhiteElo "1950"]
[BlackElo "1874"]

1. Nf3 {[%clk 00:03:02]} {[%emt 00:00:01]} c5 {[%clk 00:03:02]} {[%emt
00:00:03]} 2. b3 {[%clk 00:03:03]} d5 {[%clk 00:03:03]} {[%emt 00:00:02]} 3. e3
{[%clk 00:03:04]} Nc6 {[%clk 00:03:02]} {[%emt 00:00:03]} 4. h3 {[%emt
00:00:02]} Nf6 {[%clk 00:03:02]} 5. Bb2 {[%clk 00:03:07]} Qc7 {[%clk 00:03:01]}
{[%emt 00:00:03]} 6. d3 {[%clk 00:03:08]} e5 {[%clk 00:03:00]} {[%emt
00:00:02]} 7. g4 {[%clk 00:03:09]} {[%emt 00:00:01]} h6 {[%clk 00:02:57]}
{[%emt 00:00:05]} 8. Nbd2 {[%clk 00:03:09]} {[%emt 00:00:01]} Be6 {[%clk
00:02:52]} {[%emt 00:00:08]} 9. a3 {[%clk 00:03:10]} {[%emt 00:00:01]} Bd6
{[%clk 00:02:50]} {[%emt 00:00:03]} 10. Qe2 {[%clk 00:03:11]} d4 {[%clk
00:02:39]} {[%emt 00:00:14]} 11. Bg2 {[%clk 00:03:07]} {[%emt 00:00:05]} dxe3
{[%clk 00:02:36]} {[%emt 00:00:06]} 12. fxe3 {[%clk 00:03:08]} {[%emt
00:00:01]} Nd5 {[%clk 00:02:32]} {[%emt 00:00:05]} 13. Ne4 {[%clk 00:02:50]}
{[%emt 00:00:21]} Be7 {[%clk 00:02:31]} {[%emt 00:00:03]} 14. O-O-O {[%clk
00:02:46]} {[%emt 00:00:06]} O-O-O {[%clk 00:02:28]} {[%emt 00:00:04]} 15. Kb1
{[%clk 00:02:48]} Kb8 {[%clk 00:02:28]} {[%emt 00:00:02]} 16. Rhg1 {[%clk
00:02:40]} {[%emt 00:00:09]} f6 {[%clk 00:02:29]} {[%emt 00:00:02]} 17. Nh4
{[%clk 00:02:33]} {[%emt 00:00:07]} Qa5 {[%clk 00:02:20]} {[%emt 00:00:14]} 18.
c4 {[%clk 00:02:11]} {[%emt 00:00:24]} Nc7 {[%clk 00:02:12]} {[%emt 00:00:09]}
19. Nc3 {[%clk 00:02:02]} {[%emt 00:00:11]} a6 {[%clk 00:02:04]} {[%emt
00:00:11]} 20. Ng6 {[%clk 00:01:42]} {[%emt 00:00:22]} Rhe8 {[%clk 00:01:58]}
{[%emt 00:00:08]} 21. h4 {[%clk 00:01:25]} {[%emt 00:00:19]} Bd6 {[%clk
00:01:58]} {[%emt 00:00:02]} 22. Ne4 {[%clk 00:01:14]} {[%emt 00:00:13]} Bg8
{[%clk 00:01:47]} {[%emt 00:00:13]} 23. g5 {[%clk 00:01:08]} {[%emt 00:00:08]}
hxg5 {[%clk 00:01:46]} {[%emt 00:00:02]} 24. hxg5 {[%clk 00:01:09]} Bh7 {[%clk
00:01:46]} {[%emt 00:00:02]} 25. Nxd6 {[%clk 00:01:08]} {[%emt 00:00:03]} Rxd6
{[%clk 00:01:46]} {[%emt 00:00:02]} 26. Bxc6 {[%clk 00:01:04]} {[%emt
00:00:06]} Rxc6 {[%clk 00:01:44]} {[%emt 00:00:04]} 27. gxf6 {[%clk 00:01:01]}
{[%emt 00:00:06]} gxf6 {[%clk 00:01:41]} {[%emt 00:00:05]} 28. Qh5 {[%clk
00:00:55]} {[%emt 00:00:07]} Bg8 {[%clk 00:01:31]} {[%emt 00:00:12]} 29. Nh4
{[%clk 00:00:48]} {[%emt 00:00:09]} Qb6 {[%clk 00:01:22]} {[%emt 00:00:12]} 30.
Qh8 {[%clk 00:00:43]} {[%emt 00:00:07]} Bxc4 {[%clk 00:01:16]} {[%emt
00:00:08]} 31. Qxf6 {[%clk 00:00:35]} {[%emt 00:00:10]} Rxf6 {[%clk 00:01:15]}
{[%emt 00:00:02]} 32. Kc1 {[%emt 00:00:04]} 0-1

[Event "Nordstansblixten 2025"]
[Site "Nordstan, Göteborg, Sweden"]
[Date "2025.05.10"]
[Round "9.9"]
[White "Cigoja, Vuk"]
[Black "Eriksson, Leo"]
[Result "1-0"]
[TimeControl "3 minutes + 2 seconds per move from move one"]
[WhiteFideId "14411628"]
[BlackFideId "1795406"]
[WhiteElo "1719"]
[BlackElo "1641"]

1. e4 {[%clk 00:03:03]} c5 {[%clk 00:03:03]} {[%emt 00:00:01]} 2. Nf3 {[%clk
00:03:05]} Nc6 {[%clk 00:03:04]} 3. d4 {[%clk 00:03:06]} cxd4 {[%clk 00:03:05]}
4. Nxd4 {[%clk 00:03:07]} Nf6 {[%clk 00:03:06]} 5. Nxc6 {[%clk 00:03:05]}
{[%emt 00:00:03]} bxc6 {[%clk 00:03:08]} 6. Bd3 {[%clk 00:03:06]} e5 {[%clk
00:03:03]} {[%emt 00:00:07]} 7. Nc3 {[%clk 00:03:00]} {[%emt 00:00:08]} Bb4
{[%clk 00:03:04]} 8. Bd2 {[%clk 00:02:59]} {[%emt 00:00:04]} O-O {[%clk
00:03:04]} {[%emt 00:00:02]} 9. a3 {[%clk 00:03:00]} Bxc3 {[%clk 00:03:05]} 10.
Bxc3 {[%clk 00:03:00]} {[%emt 00:00:02]} d5 {[%clk 00:03:02]} {[%emt 00:00:06]}
11. Qe2 {[%clk 00:02:41]} {[%emt 00:00:20]} d4 {[%clk 00:02:52]} {[%emt
00:00:12]} 12. Bd2 {[%clk 00:02:37]} {[%emt 00:00:07]} Be6 {[%clk 00:02:47]}
{[%emt 00:00:07]} 13. Bg5 {[%clk 00:02:30]} {[%emt 00:00:08]} h6 {[%clk
00:02:44]} {[%emt 00:00:05]} 14. Bd2 {[%clk 00:02:16]} {[%emt 00:00:16]} Rb8
{[%clk 00:02:41]} {[%emt 00:00:05]} 15. b3 {[%clk 00:02:10]} {[%emt 00:00:07]}
c5 {[%clk 00:02:28]} {[%emt 00:00:15]} 16. O-O {[%clk 00:02:11]} {[%emt
00:00:02]} Nd7 {[%clk 00:02:12]} {[%emt 00:00:19]} 17. Bc4 {[%clk 00:02:01]}
{[%emt 00:00:11]} Bxc4 {[%clk 00:01:57]} {[%emt 00:00:17]} 18. Qxc4 {[%clk
00:02:02]} Qc7 {[%clk 00:01:45]} {[%emt 00:00:13]} 19. f4 {[%clk 00:01:56]}
{[%emt 00:00:08]} Nb6 {[%clk 00:01:46]} 20. Ba5 {[%clk 00:01:46]} {[%emt
00:00:12]} Nxc4 {[%clk 00:01:18]} {[%emt 00:00:31]} 21. Bxc7 {[%clk 00:01:47]}
{[%emt 00:00:01]} Rb7 {[%emt 00:00:03]} 22. Bxe5 {[%clk 00:01:45]} {[%emt
00:00:01]} Nd2 {[%clk 00:01:19]} {[%emt 00:00:02]} 23. Rfe1 {[%clk 00:01:38]}
{[%emt 00:00:10]} Re8 {[%clk 00:01:15]} {[%emt 00:00:06]} 24. Bd6 {[%clk
00:01:33]} {[%emt 00:00:08]} Rxe4 {[%clk 00:00:46]} {[%emt 00:00:30]} 25. Bxc5
{[%clk 00:01:20]} {[%emt 00:00:15]} Rxf4 {[%clk 00:00:38]} {[%emt 00:00:10]} 26.
Rad1 {[%clk 00:01:16]} {[%emt 00:00:06]} Ne4 {[%clk 00:00:29]} {[%emt
00:00:11]} 27. Rxd4 {[%clk 00:01:16]} {[%emt 00:00:02]} Nxc5 {[%clk 00:00:19]}
{[%emt 00:00:12]} 28. Rxf4 {[%clk 00:01:17]} {[%emt 00:00:02]} Rd7 {[%clk
00:00:20]} {[%emt 00:00:01]} 29. Rc4 {[%clk 00:01:15]} {[%emt 00:00:04]} Ne6
{[%clk 00:00:16]} {[%emt 00:00:05]} 30. Re2 {[%clk 00:01:08]} {[%emt 00:00:10]}
g5 {[%clk 00:00:13]} {[%emt 00:00:06]} 31. b4 {[%clk 00:01:07]} {[%emt
00:00:02]} Nf4 {[%clk 00:00:12]} {[%emt 00:00:02]} 32. Re1 {[%clk 00:00:58]}
{[%emt 00:00:12]} f5 {[%clk 00:00:10]} {[%emt 00:00:04]} 33. a4 {[%clk
00:00:57]} {[%emt 00:00:03]} h5 {[%clk 00:00:05]} {[%emt 00:00:07]} 34. a5
{[%clk 00:00:57]} {[%emt 00:00:02]} Kf7 {[%clk 00:00:07]} 35. b5 {[%clk
00:00:57]} {[%emt 00:00:01]} Kf6 {[%clk 00:00:08]} 36. Rc6+ {[%clk 00:00:57]}
{[%emt 00:00:01]} Kf7 {[%clk 00:00:08]} {[%emt 00:00:02]} 37. b6 {[%clk
00:00:57]} {[%emt 00:00:02]} axb6 {[%clk 00:00:09]} 38. axb6 {[%clk 00:00:58]}
Ne6 {[%clk 00:00:03]} {[%emt 00:00:08]} 39. Rcxe6 {[%clk 00:00:57]} {[%emt
00:00:04]} 1-0

[Event "Nordstansblixten 2025"]
[Site "Nordstan, Göteborg, Sweden"]
[Date "2025.05.10"]
[Round "9.10"]
[White "Madevan Vaishnavi, Yaashvan"]
[Black "Dasari, Joel"]
[Result "1-0"]
[TimeControl "3 minutes + 2 seconds per move from move one"]
[WhiteFideId "1772180"]
[BlackFideId "1789562"]
[WhiteElo "1717"]
[BlackElo "1520"]

1. e4 {[%clk 00:03:03]} e5 {[%clk 00:03:03]} {[%emt 00:00:01]} 2. Nf3 {[%clk
00:03:05]} Nc6 {[%emt 00:00:04]} 3. d4 exd4 {[%clk 00:03:01]} {[%emt 00:00:03]}
4. Bc4 {[%clk 00:03:07]} {[%emt 00:00:02]} Nf6 {[%clk 00:02:50]} {[%emt
00:00:13]} 5. O-O {[%clk 00:03:06]} {[%emt 00:00:02]} d5 {[%clk 00:02:36]}
{[%emt 00:00:16]} 6. exd5 {[%clk 00:03:05]} {[%emt 00:00:03]} Nxd5 {[%clk
00:02:36]} {[%emt 00:00:02]} 7. Nxd4 {[%clk 00:02:52]} {[%emt 00:00:15]} Nb6
{[%clk 00:02:16]} {[%emt 00:00:18]} 8. Nxc6 {[%clk 00:02:27]} {[%emt 00:00:31]}
Qxd1 {[%clk 00:02:16]} {[%emt 00:00:02]} 9. Rxd1 {[%clk 00:02:18]} {[%emt
00:00:11]} bxc6 {[%clk 00:02:16]} {[%emt 00:00:02]} 10. Bb3 {[%clk 00:02:07]}
{[%emt 00:00:13]} Nd5 {[%clk 00:02:08]} {[%emt 00:00:10]} 11. c4 {[%clk
00:01:39]} {[%emt 00:00:31]} Nb6 {[%clk 00:01:51]} {[%emt 00:00:17]} 12. Nc3
{[%clk 00:01:16]} {[%emt 00:00:25]} Be6 {[%clk 00:01:31]} {[%emt 00:00:22]} 13.
Bf4 {[%clk 00:01:04]} {[%emt 00:00:08]} Nxc4 {[%clk 00:01:07]} {[%emt
00:00:32]} 14. Bxc4 {[%clk 00:00:55]} {[%emt 00:00:12]} Bxc4 {[%clk 00:01:07]}
{[%emt 00:00:02]} 15. Bxc7 {[%clk 00:00:56]} {[%emt 00:00:01]} Bb4 {[%clk
00:00:48]} {[%emt 00:00:16]} 16. Rd4 {[%clk 00:00:42]} {[%emt 00:00:20]} Bxc3
{[%clk 00:00:48]} {[%emt 00:00:03]} 17. Rxc4 {[%clk 00:00:34]} {[%emt
00:00:10]} Bxb2 {[%clk 00:00:39]} {[%emt 00:00:11]} 18. Re1+ {[%clk 00:00:24]}
{[%emt 00:00:12]} Kd7 {[%clk 00:00:32]} {[%emt 00:00:08]} 19. Bg3 {[%clk
00:00:23]} {[%emt 00:00:04]} Rhe8 {[%clk 00:00:27]} {[%emt 00:00:06]} 20. Rd1+
{[%clk 00:00:24]} {[%emt 00:00:02]} Ke7 {[%clk 00:00:26]} {[%emt 00:00:03]} 21.
Bd6+ {[%clk 00:00:18]} {[%emt 00:00:08]} Kd7 {[%clk 00:00:21]} {[%emt
00:00:07]} 22. Ba3+ {[%clk 00:00:17]} {[%emt 00:00:03]} Kc7 {[%clk 00:00:20]}
{[%emt 00:00:02]} 23. Bxb2 {[%clk 00:00:18]} {[%emt 00:00:01]} Red8 {[%clk
00:00:20]} {[%emt 00:00:03]} 24. Be5+ {[%clk 00:00:16]} {[%emt 00:00:03]} Kb6
{[%clk 00:00:20]} {[%emt 00:00:02]} 25. Rb1+ {[%clk 00:00:17]} {[%emt
00:00:02]} Ka5 {[%clk 00:00:13]} {[%emt 00:00:08]} 26. Bc7+ {[%clk 00:00:16]}
{[%emt 00:00:04]} Ka6 {[%clk 00:00:10]} {[%emt 00:00:05]} 27. Rxc6# {[%clk
00:00:16]} {[%emt 00:00:02]} 1-0